fUSD/lending_fUSD_20240216
["ID","MTS","AMOUNT","RATE_DAILY","PERIOD"]
[314178312,1708047059454,-7971.43,0.00040821,7]
[314178313,1708047059464,-1127.98,0.00040821,7]
[314178314,1708047059473,-682.14,0.00040821,7]
[314178315,1708047059483,-332.83541616,0.00040821,7]
[314178316,1708047059492,-150.0,0.0004083,2]
[314178317,1708047059502,-150.0,0.00040833,2]
[314178318,1708047059511,-150.0,0.00040842,2]
[314178319,1708047059521,-150.0,0.00040849,2]
[314178320,1708047059530,-239.0,0.0004087,7]
[314178321,1708047059539,-45022.91081173,0.0004088,11]
[314178322,1708047059550,-161.32139665,0.00040882,30]
[314178323,1708047059559,-7745.3421919,0.0004089,2]
[314178324,1708047059569,-3654.0592736,0.0004089,2]
[314178325,1708047059579,-217.4640749,0.0004089,2]
[314178326,1708047059588,-150.0,0.00040894,2]
[314178327,1708047059597,-7765.71538254,0.000409,7]
[314178328,1708047059607,-342.48,0.000409,7]
[314178329,1708047059617,-152.99633916,0.00040918,10]
[314178330,1708047059626,-23401.24339038,0.00040918,15]
[314178331,1708047059636,-1500.0,0.00040923,2]
[314178332,1708047059646,-150.0,0.00040942,2]
[314178333,1708047059656,-1131.0002578,0.00040944,2]
[314178334,1708047059665,-151.0,0.00040951,7]
[314178335,1708047059675,-13109.8433548,0.00040972,2]
[314178336,1708047059684,-588.0,0.00040973,30]
[314178337,1708047059693,-256.0,0.00040973,30]
[314178338,1708047059703,-161.32139665,0.00040982,30]
[314178339,1708047059712,-150.0,0.00040985,2]
[314178340,1708047059721,-500.0,0.0004099,7]
[314178341,1708047059730,-500.0,0.0004099,7]
[314178342,1708047059739,-500.0,0.0004099,7]
[314178343,1708047059749,-500.0,0.0004099,7]
[314178344,1708047059759,-500.0,0.0004099,7]
[314178345,1708047059768,-500.0,0.0004099,7]
[314178346,1708047059777,-500.0,0.0004099,7]
[314178347,1708047059786,-500.0,0.0004099,7]
[314178348,1708047059795,-500.0,0.0004099,7]
[314178349,1708047059804,-500.0,0.0004099,7]
[314178350,1708047059813,-500.0,0.0004099,7]
[314178351,1708047059822,-500.0,0.0004099,7]
[314178352,1708047059831,-500.0,0.0004099,7]
[314178353,1708047059841,-500.0,0.0004099,7]
[314178354,1708047059850,-500.0,0.0004099,7]
[314178355,1708047059859,-500.0,0.0004099,7]
[314178356,1708047059868,-500.0,0.0004099,7]
[314178357,1708047059877,-500.0,0.0004099,7]
[314178358,1708047059888,-500.0,0.0004099,7]
[314178359,1708047059897,-500.0,0.0004099,7]
[314178360,1708047059906,-257.44,0.0004099,7]
[314178361,1708047059915,-500.0,0.0004099,7]
[314178362,1708047059924,-500.0,0.0004099,7]
[314178363,1708047059934,-812.0,0.0004099,2]
[314178364,1708047059943,-2150.9624423,0.00040997,2]
[314178365,1708047059953,-1000.0,0.00040999,2]
[314178366,1708047059962,-36905.0,0.00041,31]
[314178367,1708047059971,-653084.0,0.00041,2]
[314178368,1708047059981,-208.92,0.00041,10]
[314178369,1708047059990,-9067.44849491,0.00041,5]
[314178370,1708047059999,-580.0,0.00041,4]
[314178371,1708047060008,-10000.0,0.00041,14]
[314178372,1708047060017,-2428.93445607,0.00041,5]
[314178373,1708047060026,-299.999999,0.00041,42]
[314178374,1708047060036,-58000.0,0.00041,5]
[314178375,1708047060046,-158.38,0.00041,2]
[314178376,1708047060056,-158.38,0.00041,2]
[314178377,1708047060065,-158.38,0.00041,2]
[314178378,1708047060075,-158.38,0.00041,2]
[314178379,1708047060084,-239.0,0.00041007,7]
[314178380,1708047060094,-150.0,0.00041007,2]
[314178381,1708047060103,-150.0,0.00041024,2]
[314178382,1708047060112,-150.0,0.00041028,2]
[314178383,1708047060122,-150.0,0.00041034,2]
[314178384,1708047060131,-150.0,0.00041045,2]
[314178385,1708047060140,-154.0,0.0004105,2]
[314178386,1708047060149,-1500.0,0.0004106,2]
[314178387,1708047060159,-300.0,0.00041078,2]
[314178388,1708047060168,-151.0,0.00041088,7]
[314178389,1708047060178,-1000.0,0.00041095,2]
[314178390,1708047060187,-353.33035146,0.00041095,30]
[314178391,1708047060197,-1004.83982426,0.00041095,7]
[314178392,1708047060206,-500.0,0.00041095,2]
[314178393,1708047060215,-500.0,0.00041095,2]
[314178394,1708047060225,-500.0,0.00041095,2]
[314178395,1708047060234,-500.0,0.00041095,2]
[314178396,1708047060243,-608.71866468,0.00041095,2]
[314178397,1708047060253,-500.0,0.00041095,30]
[314178398,1708047060262,-600.0,0.00041095,30]
[314178399,1708047060272,-750.0,0.00041095,2]
[314178400,1708047060281,-500.0,0.00041095,30]
[314178401,1708047060410,-500.0,0.00041095,30]
[314178402,1708047060421,-615.18,0.00041095,30]
[314178403,1708047060432,-500.0,0.00041095,30]
[314178404,1708047060441,-500.0,0.00041095,30]
[314178405,1708047060451,-500.0,0.00041095,30]
[314178406,1708047060461,-500.0,0.00041095,30]
[314178407,1708047060469,-1799.59,0.00041095,30]
[314178408,1708047060479,-500.0,0.00041095,30]
[314178409,1708047060489,-670.83,0.00041095,30]
[314178410,1708047060499,-511.61,0.00041095,30]
[314178411,1708047060509,-500.0,0.00041095,30]
[314178412,1708047060518,-597.55,0.00041095,30]
[314178413,1708047060528,-500.0,0.00041095,30]
[314178414,1708047060538,-336.97940382,0.00041095,30]
[314178415,1708047060548,-155.55613043,0.00041095,30]
[314178416,1708047060557,-1340.23,0.00041095,30]
[314178417,1708047060568,-500.0,0.00041095,30]
[314178418,1708047060578,-529.22,0.00041095,30]
[314178419,1708047060589,-540.72,0.00041095,30]
[314178420,1708047060599,-571.58,0.00041095,30]
[314178421,1708047060608,-500.0,0.00041095,30]
[314178422,1708047060618,-500.0,0.00041095,30]
[314178423,1708047060628,-500.0,0.00041095,30]
[314178424,1708047060638,-721.24,0.00041095,30]
[314178425,1708047060647,-500.0,0.00041095,30]
[314178426,1708047060657,-642.45,0.00041095,30]
[314178427,1708047060667,-500.0,0.00041095,30]
[314178428,1708047060677,-1409.78,0.00041095,30]
[314178429,1708047060687,-574.0,0.00041095,30]
[314178430,1708047060699,-7971.43,0.00041095,30]
[314178431,1708047060709,-1127.98,0.00041095,30]
[314178432,1708047060719,-514.61399125,0.00041095,7]
[314178433,1708047060730,-682.14,0.00041095,30]
[314178434,1708047060739,-288.092847,0.00041096,14]
[314178435,1708047060749,-175.45,0.00041096,2]
[314178436,1708047060758,-150.0,0.00041107,2]
[314178437,1708047060768,-159.74651182,0.0004111,2]
[314178438,1708047060779,-1050.0,0.00041118,7]
[314178439,1708047060789,-628.0,0.00041118,7]
[314178440,1708047060798,-728.0,0.00041118,7]
[314178441,1708047060808,-200.0,0.00041118,7]
[314178442,1708047060817,-171.18795662,0.0004114,30]
[314178443,1708047060826,-239.0,0.00041144,7]
[314178444,1708047060837,-3242.3554087,0.00041147,5]
[314178445,1708047060847,-151.021624,0.00041148,27]
[314178446,1708047060856,-150.0,0.00041171,2]
[314178447,1708047060867,-205.0,0.00041177,15]
[314178448,1708047060876,-342.48,0.000412,7]
[314178449,1708047060886,-1000.0,0.000412,5]
[314178450,1708047060895,-1500.0,0.00041235,2]
[314178451,1708047060905,-150.0,0.00041241,2]
[314178452,1708047060915,-150.0,0.00041249,2]
[314178453,1708047060925,-150.0,0.00041259,2]
[314178454,1708047060934,-150.0,0.00041275,2]
[314178455,1708047060944,-239.0,0.00041281,7]
[314178456,1708047060956,-159.53892364,0.00041283,30]
[314178457,1708047060965,-150.0,0.00041284,2]
[314178458,1708047060974,-150.0,0.00041291,2]
[314178459,1708047060985,-200.0,0.000413,15]
[314178460,1708047060995,-456.06,0.000413,4]
[314178461,1708047061004,-456.06,0.000413,4]
[314178462,1708047061014,-456.06,0.000413,4]
[314178463,1708047061023,-456.06,0.000413,4]
[314178464,1708047061033,-456.06,0.000413,4]
[314178465,1708047061042,-456.06,0.000413,4]
[314178466,1708047061052,-456.06,0.000413,4]
[314178467,1708047061061,-456.06,0.000413,4]
[314178468,1708047061071,-456.06,0.000413,4]
[314178469,1708047061081,-456.06,0.000413,4]
[314178470,1708047061090,-456.06,0.000413,4]
[314178471,1708047061100,-456.06,0.000413,4]
[314178472,1708047061110,-456.06,0.000413,4]
[314178473,1708047061120,-456.06,0.000413,4]
[314178474,1708047061129,-456.06,0.000413,4]
[314178475,1708047061138,-456.06,0.000413,4]
[314178476,1708047061148,-456.06,0.000413,4]
[314178477,1708047061157,-456.06,0.000413,4]
[314178478,1708047061166,-456.06,0.000413,4]
[314178479,1708047061175,-456.06,0.000413,4]
[314178480,1708047061184,-155.01,0.000413,4]
[314178481,1708047061194,-155.01,0.000413,4]
[314178482,1708047061204,-155.05,0.00041307,2]
[314178483,1708047061213,-150.0,0.00041313,2]
[314178484,1708047061222,-150.0,0.00041314,2]
[314178485,1708047061231,-150.0,0.00041314,2]
[314178486,1708047061240,-150.0,0.00041315,2]
[314178487,1708047061249,-300.0,0.0004134,2]
[314178488,1708047061258,-150.0,0.00041366,2]
[314178489,1708047061268,-500.0,0.00041369,30]
[314178490,1708047061277,-600.0,0.00041369,30]
[314178491,1708047061287,-500.0,0.00041369,30]
[314178492,1708047061298,-500.0,0.00041369,30]
[314178493,1708047061309,-615.18,0.00041369,30]
[314178494,1708047061319,-500.0,0.00041369,30]
[314178495,1708047061330,-500.0,0.00041369,30]
[314178496,1708047061340,-500.0,0.00041369,30]
[314178497,1708047061350,-500.0,0.00041369,30]
[314178498,1708047061361,-1799.59,0.00041369,30]
[314178499,1708047061371,-500.0,0.00041369,30]
[314178500,1708047061381,-670.83,0.00041369,30]
[314178501,1708047061391,-511.61,0.00041369,30]
[314178502,1708047061401,-500.0,0.00041369,30]
[314178503,1708047061410,-597.55,0.00041369,30]
[314178504,1708047061420,-500.0,0.00041369,30]
[314178505,1708047061429,-1340.23,0.00041369,30]
[314178506,1708047061439,-500.0,0.00041369,30]
[314178507,1708047061450,-529.22,0.00041369,30]
[314178508,1708047061459,-540.72,0.00041369,30]
[314178509,1708047061471,-571.58,0.00041369,30]
[314178510,1708047061481,-500.0,0.00041369,30]
[314178511,1708047061492,-500.0,0.00041369,30]
[314178512,1708047061502,-500.0,0.00041369,30]
[314178513,1708047061512,-721.24,0.00041369,30]
[314178514,1708047061521,-642.45,0.00041369,30]
[314178515,1708047061531,-500.0,0.00041369,30]
[314178516,1708047061541,-500.0,0.00041369,30]
[314178517,1708047061551,-1409.78,0.00041369,30]
[314178518,1708047061561,-574.0,0.00041369,30]
[314178519,1708047061572,-7971.43,0.00041369,30]
[314178520,1708047061582,-1127.98,0.00041369,30]
[314178521,1708047061591,-682.14,0.00041369,30]
[314178522,1708047061601,-150.0,0.00041378,2]
[314178523,1708047061610,-588.0,0.00041395,30]
[314178524,1708047061620,-256.0,0.00041395,30]
[314178525,1708047061629,-150.0,0.00041403,2]
[314178526,1708047061638,-150.0,0.00041408,2]
[314178527,1708047061648,-239.0,0.00041418,7]
[314178528,1708047061657,-150.0,0.0004142,2]
[314178529,1708047061667,-150.0,0.00041421,2]
[314178530,1708047061676,-151.021624,0.00041448,27]
[314178531,1708047061686,-6881.50915963,0.00041458,2]
[314178532,1708047061696,-1050.0,0.00041463,7]
[314178533,1708047061707,-628.0,0.00041463,7]
[314178534,1708047061717,-728.0,0.00041463,7]
[314178535,1708047061726,-200.0,0.00041463,7]
[314178536,1708047061735,-150.0,0.0004147,2]
[314178537,1708047061745,-3743.05915225,0.0004147,10]
[314178538,1708047061754,-150.0,0.00041479,2]
[314178539,1708047061764,-150.0,0.00041486,2]
[314178540,1708047061773,-150.0,0.00041496,2]
[314178541,1708047061782,-170.24669159,0.00041496,2]
[314178542,1708047061791,-580.0,0.000415,5]
[314178543,1708047061801,-2346.0,0.000415,30]
[314178544,1708047061810,-342.48,0.000415,7]
[314178545,1708047061819,-200.0,0.000415,30]
[314178546,1708047061829,-4000.0,0.000415,12]
[314178547,1708047061838,-152.0,0.00041517,4]
[314178548,1708047061847,-1000.0,0.00041519,15]
[314178549,1708047061857,-150.0,0.0004152,2]
[314178550,1708047061866,-10000.0,0.00041525,4]
[314178551,1708047061876,-150.0,0.00041528,2]
[314178552,1708047061886,-3000.0,0.0004153,9]
[314178553,1708047061895,-1000.0,0.00041541,15]
[314178554,1708047061905,-150.0,0.00041543,2]
[314178555,1708047061915,-150.0,0.00041544,2]
[314178556,1708047061925,-23401.24339038,0.00041545,15]
[314178557,1708047061935,-239.0,0.00041555,7]
[314178558,1708047061944,-1000.0,0.00041557,15]
[314178559,1708047061956,-151.66089329,0.00041558,2]
[314178560,1708047061966,-150.0,0.00041568,2]
[314178561,1708047061975,-150.0,0.00041578,2]
[314178562,1708047061984,-160.0,0.00041581,3]
[314178563,1708047061993,-16000.0,0.00041581,3]
[314178564,1708047062003,-150.0,0.00041586,2]
[314178565,1708047062013,-160.0,0.0004159,3]
[314178566,1708047062022,-16000.0,0.0004159,3]
[314178567,1708047062031,-150.0,0.00041594,2]
[314178568,1708047062041,-150.0,0.00041595,3]
[314178569,1708047062050,-150.0,0.0004161,2]
[314178570,1708047062060,-150.0,0.0004161,2]
[314178571,1708047062069,-300.0,0.0004161,2]
[314178572,1708047062079,-150.0,0.00041623,2]
[314178573,1708047062088,-150.0,0.0004164,2]
[314178574,1708047062098,-500.0,0.00041643,30]
[314178575,1708047062107,-600.0,0.00041643,30]
[314178576,1708047062116,-900.0,0.00041643,2]
[314178577,1708047062126,-500.0,0.00041643,30]
[314178578,1708047062135,-500.0,0.00041643,30]
[314178579,1708047062144,-615.18,0.00041643,30]
[314178580,1708047062154,-500.0,0.00041643,30]
[314178581,1708047062163,-500.0,0.00041643,30]
[314178582,1708047062173,-500.0,0.00041643,30]
[314178583,1708047062182,-500.0,0.00041643,30]
[314178584,1708047062192,-1799.59,0.00041643,30]
[314178585,1708047062203,-500.0,0.00041643,30]
[314178586,1708047062213,-670.83,0.00041643,30]
[314178587,1708047062223,-511.61,0.00041643,30]
[314178588,1708047062233,-500.0,0.00041643,30]
[314178589,1708047062242,-597.55,0.00041643,30]
[314178590,1708047062252,-500.0,0.00041643,30]
[314178591,1708047062262,-1340.23,0.00041643,30]
[314178592,1708047062272,-500.0,0.00041643,30]
[314178593,1708047062282,-529.22,0.00041643,30]
[314178594,1708047062291,-540.72,0.00041643,30]
[314178595,1708047062302,-571.58,0.00041643,30]
[314178596,1708047062314,-500.0,0.00041643,30]
[314178597,1708047062324,-500.0,0.00041643,30]
[314178598,1708047062333,-500.0,0.00041643,30]
[314178599,1708047062342,-721.24,0.00041643,30]
[314178600,1708047062352,-642.45,0.00041643,30]
[314178601,1708047062361,-500.0,0.00041643,30]
[314178602,1708047062370,-500.0,0.00041643,30]
[314178603,1708047062380,-1409.78,0.00041643,30]
[314178604,1708047062391,-574.0,0.00041643,30]
[314178605,1708047062401,-7971.43,0.00041643,30]
[314178606,1708047062411,-1127.98,0.00041643,30]
[314178607,1708047062421,-682.14,0.00041643,30]
[314178608,1708047062430,-150.0,0.00041654,2]
[314178609,1708047062439,-92339.39737066,0.0004168,3]
[314178610,1708047062448,-239.0,0.00041692,7]
[314178611,1708047062458,-50000.0,0.000417,7]
[314178612,1708047062468,-3771.0,0.000417,87]
[314178613,1708047062477,-150.0,0.00041718,3]
[314178614,1708047062487,-151.021624,0.00041748,27]
[314178615,1708047062498,-150.0,0.00041753,2]
[314178616,1708047062508,-1225.34,0.00041764,2]
[314178617,1708047062517,-150.0,0.00041766,2]
[314178618,1708047062526,-1500.0,0.00041767,2]
[314178619,1708047062536,-150.0,0.00041769,2]
[314178620,1708047062546,-922.21572728,0.00041782,7]
[314178621,1708047062555,-224.67672122,0.00041792,7]
[314178622,1708047062565,-150.0,0.00041792,2]
[314178623,1708047062575,-211.5328725,0.00041799,7]
[314178624,1708047062585,-342.48,0.000418,7]
[314178625,1708047062595,-1000.0,0.000418,18]
[314178626,1708047062604,-150.0,0.000418,2]
[314178627,1708047062614,-180.8883393,0.00041801,2]
[314178628,1708047062625,-4338.05992612,0.00041801,4]
[314178629,1708047062634,-150.0,0.00041806,2]
[314178630,1708047062643,-211.5328725,0.00041811,7]
[314178631,1708047062653,-152.66955065,0.00041814,2]
[314178632,1708047062663,-588.0,0.00041818,30]
[314178633,1708047062672,-256.0,0.00041818,30]
[314178634,1708047062682,-270.86923933,0.00041818,5]
[314178635,1708047062692,-991.49917924,0.0004182,7]
[314178636,1708047062702,-224.67672122,0.00041821,7]
[314178637,1708047062711,-922.21572728,0.00041823,7]
[314178638,1708047062721,-10704.55756811,0.00041824,7]
[314178639,1708047062730,-239.0,0.00041829,7]
[314178640,1708047062740,-224.67672122,0.00041829,7]
[314178641,1708047062750,-25142.42541354,0.00041844,7]
[314178642,1708047062864,-1075.48122115,0.00041844,2]
[314178643,1708047062875,-25142.42541354,0.00041846,7]
[314178644,1708047062885,-150.0,0.00041862,2]
[314178645,1708047062898,-10704.55756811,0.00041863,7]
[314178646,1708047062908,-1231.0,0.00041867,2]
[314178647,1708047062917,-216.0,0.00041867,2]
[314178648,1708047062926,-1254.0,0.00041867,2]
[314178649,1708047062937,-237.0,0.00041867,2]
[314178650,1708047062947,-429.0,0.00041867,2]
[314178651,1708047062957,-857.0,0.00041867,2]
[314178652,1708047062966,-343.0,0.00041867,2]
[314178653,1708047062975,-150.0,0.00041867,2]
[314178654,1708047062984,-321.0,0.00041867,2]
[314178655,1708047062993,-786.156,0.00041867,2]
[314178656,1708047063002,-454.0,0.00041867,2]
[314178657,1708047063011,-150.0,0.00041867,2]
[314178658,1708047063021,-8164.0,0.00041867,2]
[314178659,1708047063029,-2289.0,0.00041867,2]
[314178660,1708047063038,-3126.329,0.00041867,2]
[314178661,1708047063047,-2927.0,0.00041867,2]
[314178662,1708047063056,-19846.0,0.00041867,2]
[314178663,1708047063066,-2835.0,0.00041867,2]
[314178664,1708047063075,-1037.0,0.00041867,2]
[314178665,1708047063084,-953.0,0.00041867,2]
[314178666,1708047063093,-991.49917924,0.00041867,7]
[314178667,1708047063102,-211.5328725,0.00041869,7]
[314178668,1708047063111,-150.0,0.0004187,2]
[314178669,1708047063121,-324.41611297,0.00041874,31]
[314178670,1708047063130,-171840.0,0.00041874,10]
[314178671,1708047063139,-25142.42541354,0.00041877,7]
[314178672,1708047063148,-10704.55756811,0.0004188,7]
[314178673,1708047063157,-127776.43753378,0.0004188,8]
[314178674,1708047063167,-166.66666666,0.0004188,30]
[314178675,1708047063176,-922.21572728,0.00041884,7]
[314178676,1708047063185,-150.0,0.00041885,2]
[314178677,1708047063194,-991.49917924,0.00041888,7]
[314178678,1708047063204,-200.0,0.000419,17]
[314178679,1708047063213,-3000.0,0.000419,49]
[314178680,1708047063222,-3000.0,0.0004191,49]
[314178681,1708047063231,-600.0,0.00041917,30]
[314178682,1708047063241,-153.46707155,0.00041917,30]
[314178683,1708047063250,-500.0,0.00041917,30]
[314178684,1708047063260,-615.18,0.00041917,30]
[314178685,1708047063270,-500.0,0.00041917,30]
[314178686,1708047063279,-500.0,0.00041917,30]
[314178687,1708047063289,-500.0,0.00041917,30]
[314178688,1708047063299,-500.0,0.00041917,30]
[314178689,1708047063309,-1799.59,0.00041917,30]
[314178690,1708047063319,-500.0,0.00041917,30]
[314178691,1708047063329,-670.83,0.00041917,30]
[314178692,1708047063339,-511.61,0.00041917,30]
[314178693,1708047063348,-500.0,0.00041917,30]
[314178694,1708047063358,-597.55,0.00041917,30]
[314178695,1708047063367,-500.0,0.00041917,30]
[314178696,1708047063376,-1340.23,0.00041917,30]
[314178697,1708047063386,-500.0,0.00041917,30]
[314178698,1708047063395,-529.22,0.00041917,30]
[314178699,1708047063404,-540.72,0.00041917,30]
[314178700,1708047063414,-571.58,0.00041917,30]
[314178701,1708047063423,-500.0,0.00041917,30]
[314178702,1708047063432,-500.0,0.00041917,30]
[314178703,1708047063441,-500.0,0.00041917,30]
[314178704,1708047063450,-721.24,0.00041917,30]
[314178705,1708047063460,-642.45,0.00041917,30]
[314178706,1708047063469,-500.0,0.00041917,30]
[314178707,1708047063479,-500.0,0.00041917,30]
[314178708,1708047063488,-1409.78,0.00041917,30]
[314178709,1708047063498,-574.0,0.00041917,30]
[314178710,1708047063507,-7971.43,0.00041917,30]
[314178711,1708047063517,-1127.98,0.00041917,30]
[314178712,1708047063526,-682.14,0.00041917,30]
[314178713,1708047063536,-288.092847,0.00041918,14]
[314178714,1708047063545,-5480.514483,0.0004192,49]
[314178715,1708047063554,-150.0,0.00041931,2]
[314178716,1708047063563,-150.0,0.00041938,2]
[314178717,1708047063573,-300.0,0.00041941,2]
[314178718,1708047063582,-8324.94,0.0004195,2]
[314178719,1708047063592,-8324.94,0.0004195,2]
[314178720,1708047063601,-8324.94,0.0004195,2]
[314178721,1708047063611,-8324.94,0.0004195,2]
[314178722,1708047063620,-8324.94,0.0004195,2]
[314178723,1708047063630,-8324.94,0.0004195,2]
[314178724,1708047063640,-8324.94,0.0004195,2]
[314178725,1708047063649,-8324.94,0.0004195,2]
[314178726,1708047063659,-8324.94,0.0004195,2]
[314178727,1708047063668,-8324.94,0.0004195,2]
[314178728,1708047063678,-8324.94,0.0004195,2]
[314178729,1708047063687,-8324.94,0.0004195,2]
[314178730,1708047063697,-8324.94,0.0004195,2]
[314178731,1708047063707,-8324.94,0.0004195,2]
[314178732,1708047063716,-8324.94,0.0004195,2]
[314178733,1708047063726,-8325.015,0.0004195,2]
[314178734,1708047063735,-150.0,0.00041958,2]
[314178735,1708047063743,-239.0,0.00041966,7]
[314178736,1708047063753,-150.0,0.00041966,2]
[314178737,1708047063764,-7381.8787685,0.00041971,2]
[314178738,1708047063773,-3482.5862954,0.00041971,2]
[314178739,1708047063783,-207.2592015,0.00041971,2]
[314178740,1708047063793,-1122.4130999,0.00041971,2]
[314178741,1708047063803,-150.0,0.00041974,2]
[314178742,1708047063815,-150.0,0.00041979,2]
[314178743,1708047063824,-150.0,0.00041981,2]
[314178744,1708047063833,-3150.96879329,0.0004199,30]
[314178745,1708047063843,-100000.0,0.00042,32]
[314178746,1708047063855,-234.0,0.00042,6]
[314178747,1708047063864,-17568.0,0.00042,10]
[314178748,1708047063874,-5000.0,0.00042,10]
[314178749,1708047063882,-99626.999999,0.00042,2]
[314178750,1708047063891,-1602.413,0.00042,30]
[314178751,1708047063902,-679.52432816,0.00042,60]
[314178752,1708047063912,-300.0,0.00042,43]
[314178753,1708047063921,-5912.23923637,0.00042,4]
[314178754,1708047063931,-1000.0,0.00042,30]
[314178755,1708047063941,-2000.0,0.00042,30]
[314178756,1708047063951,-500.0,0.00042,4]
[314178757,1708047063960,-965.00563231,0.00042,7]
[314178758,1708047063969,-2000.0,0.00042,4]
[314178759,1708047063979,-1048.6718973,0.00042,7]
[314178760,1708047063989,-10000.0,0.00042,90]
[314178761,1708047063999,-421.77947642,0.00042,120]
[314178762,1708047064008,-3310.77,0.00042,7]
[314178763,1708047064017,-200.0,0.00042,49]
[314178764,1708047064027,-456.06,0.00042,4]
[314178765,1708047064036,-456.06,0.00042,4]
[314178766,1708047064045,-456.06,0.00042,4]
[314178767,1708047064055,-456.06,0.00042,4]
[314178768,1708047064064,-456.06,0.00042,4]
[314178769,1708047064073,-456.06,0.00042,4]
[314178770,1708047064082,-456.06,0.00042,4]
[314178771,1708047064091,-456.06,0.00042,4]
[314178772,1708047064100,-456.06,0.00042,4]
[314178773,1708047064110,-456.06,0.00042,4]
[314178774,1708047064121,-456.06,0.00042,4]
[314178775,1708047064131,-456.06,0.00042,4]
[314178776,1708047064140,-456.06,0.00042,4]
[314178777,1708047064149,-456.06,0.00042,4]
[314178778,1708047064159,-456.06,0.00042,4]
[314178779,1708047064169,-456.06,0.00042,4]
[314178780,1708047064178,-456.06,0.00042,4]
[314178781,1708047064188,-456.06,0.00042,4]
[314178782,1708047064197,-456.06,0.00042,4]
[314178783,1708047064209,-456.06,0.00042,4]
[314178784,1708047064218,-200.0,0.00042,2]
[314178785,1708047064227,-200.0,0.00042,2]
[314178786,1708047064236,-305.48,0.00042,2]
[314178787,1708047064246,-1000.0,0.00042,7]
[314178788,1708047064255,-767.04,0.00042,120]
[314178789,1708047064264,-155.01,0.00042,4]
[314178790,1708047064273,-155.01,0.00042,4]
[314178791,1708047064283,-166.66666666,0.00042002,30]
[314178792,1708047064292,-967.19,0.00042056,2]
[314178793,1708047064302,-2000.0,0.00042083,2]
[314178794,1708047064314,-2000.0,0.00042083,2]
[314178795,1708047064323,-2322.27,0.00042092,15]
[314178796,1708047064332,-500.0,0.00042098,7]
[314178797,1708047064341,-342.48,0.000421,7]
[314178798,1708047064350,-239.0,0.00042103,7]
[314178799,1708047064359,-23401.24339038,0.00042173,16]
[314178800,1708047064369,-600.0,0.00042191,30]
[314178801,1708047064378,-1050.0,0.00042191,2]
[314178802,1708047064389,-275.85072258,0.00042191,30]
[314178803,1708047064398,-615.18,0.00042191,30]
[314178804,1708047064408,-500.0,0.00042191,30]
[314178805,1708047064417,-500.0,0.00042191,30]
[314178806,1708047064427,-500.0,0.00042191,30]
[314178807,1708047064436,-500.0,0.00042191,30]
[314178808,1708047064446,-1799.59,0.00042191,30]
[314178809,1708047064454,-500.0,0.00042191,30]
[314178810,1708047064464,-670.83,0.00042191,30]
[314178811,1708047064473,-511.61,0.00042191,30]